[Event "*** Titled Tuesday Blitz"]
[Site "Chess.com"]
[Date "2020.12.01"]
[Round "2"]
[White "Fh2411"]
[Black "ArjunErigaisi2003"]
[Result "0-1"]
[WhiteElo "2556"]
[BlackElo "2910"]
[TimeControl "180+1"]
[EndTime "10:18:30 PST"]
[Termination "ArjunErigaisi2003 won by resignation"]

1. d4 {[%clk 0:03:00.4]} 1... e6 {[%clk 0:02:57.9]} 2. Nf3 {[%clk 0:03:00]} 2...
b6 {[%clk 0:02:56]} 3. g3 {[%clk 0:02:59.2]} 3... Bb7 {[%clk 0:02:54.9]} 4. Bg2
{[%clk 0:03:00.1]} 4... Nf6 {[%clk 0:02:54]} 5. O-O {[%clk 0:03:00.5]} 5... Be7
{[%clk 0:02:54.1]} 6. c4 {[%clk 0:03:00.6]} 6... O-O {[%clk 0:02:54.6]} 7. Nc3
{[%clk 0:03:01.1]} 7... Bb4 {[%clk 0:02:53.2]} 8. Bd2 {[%clk 0:03:00.3]} 8... d6
{[%clk 0:02:49.7]} 9. a3 {[%clk 0:02:57.4]} 9... Bxc3 {[%clk 0:02:49.8]} 10.
Bxc3 {[%clk 0:02:58.3]} 10... Ne4 {[%clk 0:02:50.7]} 11. Qc2 {[%clk 0:02:58]}
11... Nd7 {[%clk 0:02:48]} 12. Nd2 {[%clk 0:02:55.3]} 12... Nxc3 {[%clk
0:02:47.5]} 13. Qxc3 {[%clk 0:02:53.3]} 13... Bxg2 {[%clk 0:02:47.7]} 14. Kxg2
{[%clk 0:02:54.2]} 14... f5 {[%clk 0:02:47]} 15. Rae1 {[%clk 0:02:45.8]} 15...
Qe8 {[%clk 0:02:42.3]} 16. e4 {[%clk 0:02:44.8]} 16... f4 {[%clk 0:02:42.3]} 17.
e5 {[%clk 0:02:44.1]} 17... dxe5 {[%clk 0:02:31.1]} 18. dxe5 {[%clk 0:02:42.1]}
18... Rd8 {[%clk 0:02:21.1]} 19. b4 {[%clk 0:02:28.8]} 19... Qg6 {[%clk
0:02:04.5]} 20. Nf3 {[%clk 0:02:09.4]} 20... Nb8 {[%clk 0:01:55.9]} 21. Nh4
{[%clk 0:01:49]} 21... Qh5 {[%clk 0:01:54.8]} 22. Qf3 {[%clk 0:01:46.2]} 22...
Qg5 {[%clk 0:01:52.5]} 23. Qe4 {[%clk 0:01:42]} 23... c5 {[%clk 0:01:34]} 24.
Nf3 {[%clk 0:01:40.4]} 24... Qh5 {[%clk 0:01:34.4]} 25. b5 {[%clk 0:01:37.3]}
25... Rf5 {[%clk 0:01:31.1]} 26. Nh4 {[%clk 0:01:23.1]} 26... Rf7 {[%clk
0:01:25.5]} 27. Qe2 {[%clk 0:01:13.3]} 27... Qh6 {[%clk 0:01:16.1]} 28. Nf3
{[%clk 0:01:09.4]} 28... Rdf8 {[%clk 0:01:13.6]} 29. g4 {[%clk 0:01:09.3]} 29...
Qg6 {[%clk 0:01:10.9]} 30. h3 {[%clk 0:01:09.3]} 30... Rd7 {[%clk 0:01:05.6]}
31. Qe4 {[%clk 0:00:56.1]} 31... Qxe4 {[%clk 0:01:01.5]} 32. Rxe4 {[%clk
0:00:57]} 32... h6 {[%clk 0:01:02.4]} 33. a4 {[%clk 0:00:47]} 33... Rd3 {[%clk
0:01:02]} 34. Ra1 {[%clk 0:00:47.5]} 34... Nd7 {[%clk 0:01:01.9]} 35. a5 {[%clk
0:00:47]} 35... Rf7 {[%clk 0:01:00.9]} 36. axb6 {[%clk 0:00:33.7]} 36... Nxb6
{[%clk 0:01:01.8]} 37. Rc1 {[%clk 0:00:25.9]} 37... g6 {[%clk 0:00:48.3]} 38. h4
{[%clk 0:00:25.8]} 38... Kg7 {[%clk 0:00:48.3]} 39. Rc2 {[%clk 0:00:19.4]} 39...
Na4 {[%clk 0:00:42.7]} 40. Ne1 {[%clk 0:00:14.3]} 40... f3+ {[%clk 0:00:32.5]}
41. Kg3 {[%clk 0:00:12.8]} 41... Rc3 {[%clk 0:00:29.8]} 42. Rxc3 {[%clk
0:00:12.5]} 42... Nxc3 {[%clk 0:00:30.7]} 43. Re3 {[%clk 0:00:13]} 43... Ne2+
{[%clk 0:00:31.1]} 44. Kh3 {[%clk 0:00:12.6]} 44... Nd4 {[%clk 0:00:27.6]} 45.
Kg3 {[%clk 0:00:12.8]} 45... Ne2+ {[%clk 0:00:19.3]} 46. Kh2 {[%clk 0:00:12.9]}
46... Rf4 {[%clk 0:00:15.8]} 47. Nxf3 {[%clk 0:00:11.1]} 47... Nc1 {[%clk
0:00:16.4]} 48. Kg3 {[%clk 0:00:10]} 48... Rxc4 {[%clk 0:00:16.8]} 49. Ra3
{[%clk 0:00:09.2]} 49... Rb4 {[%clk 0:00:16.7]} 50. Rxa7+ {[%clk 0:00:10.1]}
50... Kf8 {[%clk 0:00:17.3]} 51. Rh7 {[%clk 0:00:09.6]} 51... Ne2+ {[%clk
0:00:17]} 52. Kh2 {[%clk 0:00:09.2]} 52... Rf4 {[%clk 0:00:14.7]} 53. Kg2 {[%clk
0:00:07.2]} 53... Rxg4+ {[%clk 0:00:14.3]} 54. Kf1 {[%clk 0:00:07.6]} 54... Nc3
{[%clk 0:00:14.2]} 55. Rxh6 {[%clk 0:00:08]} 55... Kg7 {[%clk 0:00:13.4]} 56.
Ng5 {[%clk 0:00:07.2]} 56... Kxh6 {[%clk 0:00:13.1]} 57. b6 {[%clk 0:00:08.1]}
57... Rb4 {[%clk 0:00:12.6]} 0-1

[Event "*** Titled Tuesday Blitz"]
[Site "Chess.com"]
[Date "2020.12.01"]
[Round "2"]
[White "yobdc"]
[Black "XDPS"]
[Result "0-1"]
[WhiteElo "2501"]
[BlackElo "2789"]
[TimeControl "180+1"]
[EndTime "10:18:30 PST"]
[Termination "XDPS won by checkmate"]

1. d4 {[%clk 0:02:58.2]} 1... d5 {[%clk 0:02:56.7]} 2. Nf3 {[%clk 0:02:57.5]}
2... Nf6 {[%clk 0:02:56.1]} 3. e3 {[%clk 0:02:57.7]} 3... Bf5 {[%clk 0:02:55.2]}
4. Bd3 {[%clk 0:02:57.3]} 4... Bxd3 {[%clk 0:02:48.2]} 5. cxd3 {[%clk
0:02:58.2]} 5... e6 {[%clk 0:02:44.2]} 6. Nc3 {[%clk 0:02:58.3]} 6... c5 {[%clk
0:02:39.1]} 7. dxc5 {[%clk 0:02:51]} 7... Bxc5 {[%clk 0:02:38]} 8. d4 {[%clk
0:02:51.1]} 8... Bd6 {[%clk 0:02:37]} 9. Bd2 {[%clk 0:02:49.9]} 9... O-O {[%clk
0:02:36.6]} 10. Qb3 {[%clk 0:02:43.9]} 10... Qe7 {[%clk 0:02:35.2]} 11. Nb5
{[%clk 0:02:43]} 11... Nc6 {[%clk 0:02:25.6]} 12. Nxd6 {[%clk 0:02:38.3]} 12...
Qxd6 {[%clk 0:02:26.5]} 13. Rc1 {[%clk 0:02:38]} 13... b6 {[%clk 0:02:04.5]} 14.
O-O {[%clk 0:02:34.6]} 14... Rfc8 {[%clk 0:02:04.3]} 15. Rc2 {[%clk 0:02:32.2]}
15... Rc7 {[%clk 0:01:45.5]} 16. Rfc1 {[%clk 0:02:29.9]} 16... Rac8 {[%clk
0:01:46]} 17. a3 {[%clk 0:02:22.5]} 17... h6 {[%clk 0:01:42.8]} 18. h3 {[%clk
0:02:22.4]} 18... Ne4 {[%clk 0:01:42.9]} 19. Be1 {[%clk 0:02:17.9]} 19... Qd8
{[%clk 0:01:27.4]} 20. Qa4 {[%clk 0:02:14]} 20... Qd6 {[%clk 0:00:30]} 21. b4
{[%clk 0:01:55.8]} 21... f6 {[%clk 0:00:24.9]} 22. b5 {[%clk 0:01:51.3]} 22...
Nd8 {[%clk 0:00:23.5]} 23. Bb4 {[%clk 0:01:45.9]} 23... Qd7 {[%clk 0:00:23.6]}
24. Ne1 {[%clk 0:01:29.2]} 24... Nf7 {[%clk 0:00:18.5]} 25. Rc6 {[%clk
0:01:16.2]} 25... Nd8 {[%clk 0:00:16.4]} 26. R6c2 {[%clk 0:01:04.1]} 26... Rxc2
{[%clk 0:00:16.4]} 27. Rxc2 {[%clk 0:01:04.3]} 27... Rxc2 {[%clk 0:00:16.5]} 28.
Nxc2 {[%clk 0:01:03.3]} 28... a5 {[%clk 0:00:15.7]} 29. Be1 {[%clk 0:01:00.9]}
29... Nd6 {[%clk 0:00:15.1]} 30. f3 {[%clk 0:00:48]} 30... Qxb5 {[%clk
0:00:15.1]} 31. Qxb5 {[%clk 0:00:47.8]} 31... Nxb5 {[%clk 0:00:16]} 32. a4
{[%clk 0:00:39.2]} 32... Nd6 {[%clk 0:00:16.3]} 33. Na3 {[%clk 0:00:28.4]} 33...
Kf7 {[%clk 0:00:15.1]} 34. Bg3 {[%clk 0:00:25.4]} 34... N8b7 {[%clk 0:00:12.4]}
35. Kf2 {[%clk 0:00:25.5]} 35... Ke7 {[%clk 0:00:12.6]} 36. Ke2 {[%clk
0:00:25.7]} 36... Kd7 {[%clk 0:00:13.2]} 37. Kd3 {[%clk 0:00:26]} 37... Kc6
{[%clk 0:00:13.5]} 38. e4 {[%clk 0:00:26.3]} 38... b5 {[%clk 0:00:12.9]} 39. e5
{[%clk 0:00:17.5]} 39... b4 {[%clk 0:00:11.6]} 40. Nb1 {[%clk 0:00:14.4]} 40...
Nc4 {[%clk 0:00:09.8]} 41. exf6 {[%clk 0:00:14]} 41... gxf6 {[%clk 0:00:10.7]}
42. Bf4 {[%clk 0:00:13.3]} 42... h5 {[%clk 0:00:11.2]} 43. g4 {[%clk 0:00:13.7]}
43... h4 {[%clk 0:00:07.7]} 44. g5 {[%clk 0:00:13.3]} 44... fxg5 {[%clk
0:00:08.3]} 45. Bxg5 {[%clk 0:00:14.2]} 45... Nb2+ {[%clk 0:00:08.2]} 46. Kc2
{[%clk 0:00:14.1]} 46... Nxa4 {[%clk 0:00:09.1]} 47. Bxh4 {[%clk 0:00:14.1]}
47... Nd6 {[%clk 0:00:09.1]} 48. Bf6 {[%clk 0:00:13.5]} 48... Nf5 {[%clk
0:00:09.6]} 49. h4 {[%clk 0:00:13.5]} 49... Kb5 {[%clk 0:00:09.6]} 50. h5 {[%clk
0:00:13.9]} 50... Nb6 {[%clk 0:00:09.8]} 51. h6 {[%clk 0:00:14.1]} 51... Nxh6
{[%clk 0:00:09.7]} 52. Be5 {[%clk 0:00:09.4]} 52... Nf5 {[%clk 0:00:09.8]} 53.
Nd2 {[%clk 0:00:09.1]} 53... a4 {[%clk 0:00:10.3]} 54. f4 {[%clk 0:00:05.9]}
54... Nc4 {[%clk 0:00:10.6]} 55. Nf3 {[%clk 0:00:06.1]} 55... b3+ {[%clk
0:00:10.4]} 56. Kb1 {[%clk 0:00:06.3]} 56... a3 {[%clk 0:00:09.9]} 57. Ng5
{[%clk 0:00:05.8]} 57... Nfe3 {[%clk 0:00:09.9]} 58. Nxe6 {[%clk 0:00:05.7]}
58... a2+ {[%clk 0:00:10.2]} 59. Ka1 {[%clk 0:00:06.2]} 59... Nc2# {[%clk
0:00:10.6]} 0-1

[Event "*** Titled Tuesday Blitz"]
[Site "Chess.com"]
[Date "2020.12.01"]
[Round "2"]
[White "alexsuper1987"]
[Black "Das_Virus_2020"]
[Result "0-1"]
[WhiteElo "2233"]
[BlackElo "2445"]
[TimeControl "180+1"]
[EndTime "10:18:31 PST"]
[Termination "Das_Virus_2020 won by resignation"]

1. d4 {[%clk 0:02:59.4]} 1... Nf6 {[%clk 0:02:58.4]} 2. Bf4 {[%clk 0:02:50.4]}
2... c5 {[%clk 0:02:57.7]} 3. e3 {[%clk 0:02:45.3]} 3... e6 {[%clk 0:02:57]} 4.
c3 {[%clk 0:02:26.1]} 4... b6 {[%clk 0:02:54.8]} 5. Nd2 {[%clk 0:01:31.6]} 5...
Bb7 {[%clk 0:02:53.1]} 6. Ngf3 {[%clk 0:01:30.5]} 6... Be7 {[%clk 0:02:45.6]} 7.
Bd3 {[%clk 0:01:30.3]} 7... Nh5 {[%clk 0:02:44.5]} 8. Bg3 {[%clk 0:01:26.8]}
8... Nxg3 {[%clk 0:02:37.7]} 9. hxg3 {[%clk 0:01:27.7]} 9... h6 {[%clk
0:02:36.7]} 10. Qe2 {[%clk 0:01:26.6]} 10... d6 {[%clk 0:02:30.6]} 11. g4 {[%clk
0:01:26.7]} 11... Nd7 {[%clk 0:02:27.4]} 12. e4 {[%clk 0:01:26.1]} 12... Qc7
{[%clk 0:02:23]} 13. g5 {[%clk 0:01:21.7]} 13... O-O-O {[%clk 0:02:19.3]} 14.
gxh6 {[%clk 0:01:21.4]} 14... Rxh6 {[%clk 0:02:18.1]} 15. Rxh6 {[%clk
0:01:21.2]} 15... gxh6 {[%clk 0:02:19]} 16. dxc5 {[%clk 0:01:20.6]} 16... Nxc5
{[%clk 0:02:13.5]} 17. O-O-O {[%clk 0:01:19.5]} 17... Nxd3+ {[%clk 0:02:11.2]}
18. Qxd3 {[%clk 0:01:20.4]} 18... a6 {[%clk 0:02:09.4]} 19. Qe3 {[%clk
0:01:19.5]} 19... Bf8 {[%clk 0:02:05.7]} 20. Nb3 {[%clk 0:01:16.5]} 20... Kb8
{[%clk 0:02:02.6]} 21. Kb1 {[%clk 0:01:10.1]} 21... Bg7 {[%clk 0:01:59.3]} 22.
Nbd4 {[%clk 0:00:56.6]} 22... Qc5 {[%clk 0:01:53.8]} 23. Nd2 {[%clk 0:00:53.8]}
23... Qg5 {[%clk 0:01:38.7]} 24. Nc4 {[%clk 0:00:40.1]} 24... Qc5 {[%clk
0:01:30.2]} 25. Nd2 {[%clk 0:00:37.9]} 25... Ka7 {[%clk 0:01:28.8]} 26. f3
{[%clk 0:00:37]} 26... Qg5 {[%clk 0:01:15.2]} 27. Qf2 {[%clk 0:00:36.4]} 27...
Qc5 {[%clk 0:01:10.8]} 28. N2b3 {[%clk 0:00:36.4]} 28... Qc4 {[%clk 0:01:08.4]}
29. Nc2 {[%clk 0:00:32.8]} 29... Qa4 {[%clk 0:01:01.5]} 30. Rd3 {[%clk
0:00:29.4]} 30... a5 {[%clk 0:00:55.5]} 31. Qd2 {[%clk 0:00:28.9]} 31... d5
{[%clk 0:00:50.7]} 32. Na3 {[%clk 0:00:29.1]} 32... Ba6 {[%clk 0:00:43.2]} 33.
Re3 {[%clk 0:00:22.4]} 33... Bf6 {[%clk 0:00:42.9]} 34. f4 {[%clk 0:00:21.1]}
34... dxe4 {[%clk 0:00:39.1]} 35. Qe1 {[%clk 0:00:21.7]} 35... Bd3+ {[%clk
0:00:36.3]} 36. Ka1 {[%clk 0:00:21.5]} 36... Qc6 {[%clk 0:00:36]} 37. Nc1 {[%clk
0:00:21.7]} 37... Qc5 {[%clk 0:00:32.8]} 38. Qd2 {[%clk 0:00:19.9]} 38... Qd5
{[%clk 0:00:29.4]} 39. Nxd3 {[%clk 0:00:17.3]} 39... exd3 {[%clk 0:00:28.9]} 40.
Nb1 {[%clk 0:00:16.7]} 40... Be7 {[%clk 0:00:26.1]} 41. g3 {[%clk 0:00:17.1]}
41... Bc5 {[%clk 0:00:25.9]} 42. Re5 {[%clk 0:00:17.4]} 42... Qf3 {[%clk
0:00:24.5]} 43. a3 {[%clk 0:00:17.4]} 43... Qxg3 {[%clk 0:00:22]} 44. c4 {[%clk
0:00:18]} 44... Qf2 {[%clk 0:00:19.9]} 45. Qc3 {[%clk 0:00:16.7]} 45... Qd4
{[%clk 0:00:18.1]} 46. Qe1 {[%clk 0:00:16.4]} 46... Qxf4 {[%clk 0:00:17.2]} 47.
Rxc5 {[%clk 0:00:15.5]} 47... d2 {[%clk 0:00:14.1]} 48. Rc7+ {[%clk 0:00:14.3]}
48... Qxc7 {[%clk 0:00:13.1]} 49. Nxd2 {[%clk 0:00:12.9]} 49... Qc5 {[%clk
0:00:12.7]} 50. Nb1 {[%clk 0:00:13]} 50... Qxc4 {[%clk 0:00:12.4]} 51. Nc3
{[%clk 0:00:13.9]} 51... Rd4 {[%clk 0:00:11.2]} 52. Qe5 {[%clk 0:00:13.8]} 52...
Rd5 {[%clk 0:00:10]} 53. Qg7 {[%clk 0:00:12.9]} 53... Qc7 {[%clk 0:00:09.3]} 54.
Qxh6 {[%clk 0:00:12.7]} 54... Rc5 {[%clk 0:00:09.4]} 55. Qe3 {[%clk 0:00:12.9]}
55... Rxc3 {[%clk 0:00:09.2]} 56. bxc3 {[%clk 0:00:13.1]} 56... Qc5 {[%clk
0:00:09.7]} 57. Kb2 {[%clk 0:00:13.1]} 57... Qxe3 {[%clk 0:00:08.8]} 0-1

[Event "*** Titled Tuesday Blitz"]
[Site "Chess.com"]
[Date "2020.12.01"]
[Round "2"]
[White "marciojor"]
[Black "InitiatingASC"]
[Result "1-0"]
[WhiteElo "2260"]
[BlackElo "2422"]
[TimeControl "180+1"]
[EndTime "10:18:32 PST"]
[Termination "marciojor won on time"]

1. e4 {[%clk 0:03:00.1]} 1... c5 {[%clk 0:02:58.1]} 2. Nf3 {[%clk 0:02:59.4]}
2... Nc6 {[%clk 0:02:58.4]} 3. d4 {[%clk 0:02:59.4]} 3... cxd4 {[%clk
0:02:59.3]} 4. Nxd4 {[%clk 0:02:59.9]} 4... Nf6 {[%clk 0:02:59.2]} 5. Nc3 {[%clk
0:02:59.9]} 5... e5 {[%clk 0:02:59.4]} 6. Ndb5 {[%clk 0:03:00.4]} 6... h6 {[%clk
0:02:59.9]} 7. Nd5 {[%clk 0:02:58.9]} 7... Nxd5 {[%clk 0:02:59.4]} 8. exd5
{[%clk 0:02:59.3]} 8... a6 {[%clk 0:03:00.2]} 9. dxc6 {[%clk 0:02:56.8]} 9...
axb5 {[%clk 0:03:01.1]} 10. cxd7+ {[%clk 0:02:55.8]} 10... Bxd7 {[%clk
0:03:01.3]} 11. Bd3 {[%clk 0:02:54.5]} 11... Qc7 {[%clk 0:02:58.2]} 12. O-O
{[%clk 0:02:53.4]} 12... Bc5 {[%clk 0:02:43.4]} 13. Qe2 {[%clk 0:02:51.6]} 13...
b4 {[%clk 0:02:31.9]} 14. Re1 {[%clk 0:02:50.5]} 14... Bd6 {[%clk 0:02:23.6]}
15. Qe4 {[%clk 0:02:38.8]} 15... f5 {[%clk 0:02:13.8]} 16. Qc4 {[%clk 0:02:26]}
16... Qxc4 {[%clk 0:02:07.9]} 17. Bxc4 {[%clk 0:02:24.3]} 17... O-O-O {[%clk
0:02:07.9]} 18. Bd2 {[%clk 0:02:12]} 18... Rhf8 {[%clk 0:01:59.5]} 19. Rad1
{[%clk 0:02:11.9]} 19... Bc6 {[%clk 0:01:23.5]} 20. Be3 {[%clk 0:01:57.1]} 20...
Kc7 {[%clk 0:01:17.6]} 21. Bb3 {[%clk 0:01:54.5]} 21... g5 {[%clk 0:01:13.1]}
22. f3 {[%clk 0:01:54.1]} 22... e4 {[%clk 0:01:05.7]} 23. fxe4 {[%clk
0:01:45.5]} 23... Bxe4 {[%clk 0:01:05.6]} 24. Bd4 {[%clk 0:01:40.7]} 24... Rd7
{[%clk 0:00:54.3]} 25. g4 {[%clk 0:01:38.4]} 25... Rdd8 {[%clk 0:00:24.9]} 26.
gxf5 {[%clk 0:01:32.1]} 26... Bxf5 {[%clk 0:00:24]} 27. Bg7 {[%clk 0:01:29.1]}
27... Rfe8 {[%clk 0:00:21]} 28. Rxe8 {[%clk 0:01:24.9]} 28... Rxe8 {[%clk
0:00:16]} 29. Bxh6 {[%clk 0:01:21]} 29... Bf4 {[%clk 0:00:15.2]} 30. Rd5 {[%clk
0:00:58.6]} 30... Bg4 {[%clk 0:00:11.5]} 31. Bg7 {[%clk 0:00:50.4]} 31... Re1+
{[%clk 0:00:10.2]} 32. Kf2 {[%clk 0:00:50]} 32... Re2+ {[%clk 0:00:10.5]} 33.
Kf1 {[%clk 0:00:50.3]} 33... Rxh2 {[%clk 0:00:09.9]} 34. Be5+ {[%clk 0:00:49.4]}
34... Bxe5 {[%clk 0:00:08.8]} 35. Rxe5 {[%clk 0:00:49.9]} 35... Be2+ {[%clk
0:00:09.5]} 36. Kg1 {[%clk 0:00:47.4]} 36... Kd6 {[%clk 0:00:05.1]} 37. Re3
{[%clk 0:00:43.4]} 37... Rh4 {[%clk 0:00:01.9]} 38. Rxe2 {[%clk 0:00:43.5]}
38... Rd4 {[%clk 0:00:01.9]} 39. Re6+ {[%clk 0:00:43]} 39... Kd7 {[%clk
0:00:01.9]} 40. Rg6 {[%clk 0:00:42.7]} 40... g4 {[%clk 0:00:02.4]} 41. Kg2
{[%clk 0:00:42]} 41... Kc7 {[%clk 0:00:02.9]} 42. Kg3 {[%clk 0:00:42.2]} 42...
Re4 {[%clk 0:00:02.5]} 43. Rxg4 {[%clk 0:00:42.2]} 43... Re3+ {[%clk 0:00:03.4]}
44. Kf2 {[%clk 0:00:40]} 44... Re5 {[%clk 0:00:02]} 45. Rxb4 {[%clk 0:00:40]}
45... Rf5+ {[%clk 0:00:02.3]} 46. Ke3 {[%clk 0:00:39.5]} 46... Rh5 {[%clk
0:00:03.2]} 47. Rf4 {[%clk 0:00:38.4]} 47... Rh3+ {[%clk 0:00:03.4]} 48. Rf3
{[%clk 0:00:38.5]} 48... Rh1 {[%clk 0:00:04.3]} 49. Kd3 {[%clk 0:00:37.7]} 49...
Rd1+ {[%clk 0:00:04.4]} 50. Kc3 {[%clk 0:00:35.9]} 50... Re1 {[%clk 0:00:04.9]}
51. Rd3 {[%clk 0:00:35.5]} 51... Re4 {[%clk 0:00:04.8]} 52. a4 {[%clk
0:00:35.4]} 52... Rh4 {[%clk 0:00:04.5]} 53. Bc4 {[%clk 0:00:35.2]} 53... Kb6
{[%clk 0:00:04.6]} 54. b4 {[%clk 0:00:35.3]} 54... Rg4 {[%clk 0:00:04.5]} 55.
Rd6+ {[%clk 0:00:34.9]} 55... Kc7 {[%clk 0:00:04.5]} 56. Rf6 {[%clk 0:00:34.8]}
56... Rg3+ {[%clk 0:00:04.9]} 57. Bd3 {[%clk 0:00:35.1]} 57... Rg4 {[%clk
0:00:04.5]} 58. a5 {[%clk 0:00:35.4]} 58... Rg5 {[%clk 0:00:04.5]} 59. Kb3
{[%clk 0:00:35.6]} 59... Re5 {[%clk 0:00:03.4]} 60. b5 {[%clk 0:00:35.9]} 60...
Rd5 {[%clk 0:00:02.1]} 61. Rf7+ {[%clk 0:00:35.6]} 61... Kb8 {[%clk 0:00:02]}
62. Kb4 {[%clk 0:00:32.4]} 62... Rh5 {[%clk 0:00:02]} 63. c4 {[%clk 0:00:31.3]}
63... Rh4 {[%clk 0:00:01.9]} 64. Bf5 {[%clk 0:00:28.9]} 64... Rh5 {[%clk
0:00:01.6]} 65. Be6 {[%clk 0:00:28.9]} 1-0

[Event "*** Titled Tuesday Blitz"]
[Site "Chess.com"]
[Date "2020.12.01"]
[Round "2"]
[White "TrenerChos"]
[Black "VinzentSpitzl"]
[Result "0-1"]
[WhiteElo "2160"]
[BlackElo "2405"]
[TimeControl "180+1"]
[EndTime "10:18:32 PST"]
[Termination "VinzentSpitzl won on time"]

1. d4 {[%clk 0:02:53.2]} 1... d5 {[%clk 0:02:59.8]} 2. Nf3 {[%clk 0:02:53.2]}
2... Nf6 {[%clk 0:02:59.7]} 3. g3 {[%clk 0:02:52.8]} 3... e6 {[%clk 0:02:56.6]}
4. Bg2 {[%clk 0:02:53.3]} 4... Be7 {[%clk 0:02:56.1]} 5. O-O {[%clk 0:02:52.9]}
5... O-O {[%clk 0:02:56.7]} 6. c4 {[%clk 0:02:52.4]} 6... dxc4 {[%clk
0:02:56.5]} 7. Ne5 {[%clk 0:02:51.1]} 7... Nc6 {[%clk 0:02:56.2]} 8. Nf3 {[%clk
0:02:44.7]} 8... Bd7 {[%clk 0:02:28.9]} 9. e3 {[%clk 0:02:43.8]} 9... Na5 {[%clk
0:02:24.6]} 10. Nc3 {[%clk 0:02:41.4]} 10... c5 {[%clk 0:02:21.8]} 11. Ne5
{[%clk 0:02:35.8]} 11... cxd4 {[%clk 0:02:11.8]} 12. exd4 {[%clk 0:02:36.3]}
12... Nc6 {[%clk 0:02:08.4]} 13. Nxc4 {[%clk 0:02:35.2]} 13... Nb4 {[%clk
0:01:51.1]} 14. a3 {[%clk 0:02:28.5]} 14... Nbd5 {[%clk 0:01:50.8]} 15. Ne3
{[%clk 0:02:26.6]} 15... Bc6 {[%clk 0:01:50]} 16. Qd3 {[%clk 0:02:16.6]} 16...
Qd7 {[%clk 0:01:43]} 17. Bd2 {[%clk 0:02:13.4]} 17... Rac8 {[%clk 0:01:41.9]}
18. b4 {[%clk 0:02:07.5]} 18... a6 {[%clk 0:01:41.3]} 19. Nc4 {[%clk 0:01:58.5]}
19... Nxc3 {[%clk 0:01:36.3]} 20. Nb6 {[%clk 0:01:50]} 20... Bb5 {[%clk
0:00:21.1]} 21. Qe3 {[%clk 0:01:27.6]} 21... Qc7 {[%clk 0:00:15.1]} 22. Nxc8
{[%clk 0:01:25.3]} 22... Bxf1 {[%clk 0:00:15.1]} 23. Nxe7+ {[%clk 0:01:22]}
23... Qxe7 {[%clk 0:00:15.3]} 24. Bxf1 {[%clk 0:01:22.1]} 24... Ncd5 {[%clk
0:00:14.8]} 25. Qd3 {[%clk 0:01:21.2]} 25... Rc8 {[%clk 0:00:15.2]} 26. Bg2
{[%clk 0:01:18.2]} 26... Qd6 {[%clk 0:00:15.6]} 27. Qf1 {[%clk 0:01:13.3]} 27...
h6 {[%clk 0:00:15.4]} 28. Rc1 {[%clk 0:01:11.2]} 28... Rc7 {[%clk 0:00:15.6]}
29. Qd3 {[%clk 0:01:07.6]} 29... Rxc1+ {[%clk 0:00:15.1]} 30. Bxc1 {[%clk
0:01:08.2]} 30... Qc7 {[%clk 0:00:15.8]} 31. Bb2 {[%clk 0:01:07.5]} 31... b5
{[%clk 0:00:15]} 32. Kf1 {[%clk 0:00:53.6]} 32... Qc4 {[%clk 0:00:13.7]} 33.
Qxc4 {[%clk 0:00:48.5]} 33... bxc4 {[%clk 0:00:14.6]} 34. Ke2 {[%clk 0:00:48.8]}
34... Kf8 {[%clk 0:00:14.9]} 35. h3 {[%clk 0:00:44.1]} 35... Ke7 {[%clk
0:00:15]} 36. Kd2 {[%clk 0:00:43.5]} 36... Kd6 {[%clk 0:00:14.2]} 37. f3 {[%clk
0:00:37.8]} 37... Nb6 {[%clk 0:00:14.2]} 38. f4 {[%clk 0:00:22.1]} 38... Nfd5
{[%clk 0:00:14.1]} 39. Bf1 {[%clk 0:00:17.7]} 39... Na4 {[%clk 0:00:13.9]} 40.
Ba1 {[%clk 0:00:15.1]} 40... Nab6 {[%clk 0:00:10.7]} 41. Be2 {[%clk 0:00:11.9]}
41... Kc6 {[%clk 0:00:11.1]} 42. Bd1 {[%clk 0:00:11]} 42... Kb5 {[%clk
0:00:10.4]} 43. Bc2 {[%clk 0:00:09.5]} 43... g6 {[%clk 0:00:06.5]} 44. Bb2
{[%clk 0:00:06.3]} 44... Nc8 {[%clk 0:00:06.8]} 45. Bd1 {[%clk 0:00:03.5]} 45...
Nd6 {[%clk 0:00:07.1]} 46. Be2 {[%clk 0:00:03.5]} 46... Ne4+ {[%clk 0:00:07.2]}
47. Kc2 {[%clk 0:00:03.6]} 47... Nxg3 {[%clk 0:00:07.1]} 48. Bf3 {[%clk
0:00:03.4]} 48... Nf5 {[%clk 0:00:06.7]} 49. Be4 {[%clk 0:00:02.2]} 49... Nd6
{[%clk 0:00:05.7]} 0-1